[Event "*** Titled Tuesday Blitz"]
[Site "Chess.com"]
[Date "2020.10.27"]
[Round "7"]
[White "infinitegiantkiller"]
[Black "Ranindu2003"]
[Result "1-0"]
[WhiteElo "2433"]
[BlackElo "2541"]
[TimeControl "180+1"]
[EndTime "11:19:07 PDT"]
[Termination "infinitegiantkiller won by resignation"]

1. d4 {[%clk 0:03:00.9]} 1... Nf6 {[%clk 0:02:59.6]} 2. c4 {[%clk 0:03:01.3]}
2... e6 {[%clk 0:02:59.5]} 3. Nc3 {[%clk 0:03:00.8]} 3... Bb4 {[%clk 0:02:59.2]}
4. Bd2 {[%clk 0:02:57.8]} 4... O-O {[%clk 0:02:58.6]} 5. Nf3 {[%clk 0:02:49.4]}
5... b6 {[%clk 0:02:58.1]} 6. e3 {[%clk 0:02:47.2]} 6... Bb7 {[%clk 0:02:58.2]}
7. Bd3 {[%clk 0:02:42.9]} 7... c5 {[%clk 0:02:55.2]} 8. a3 {[%clk 0:02:42.7]}
8... Bxc3 {[%clk 0:02:54.2]} 9. Bxc3 {[%clk 0:02:43.6]} 9... d5 {[%clk 0:02:53]}
10. dxc5 {[%clk 0:02:41.6]} 10... bxc5 {[%clk 0:02:52.9]} 11. O-O {[%clk
0:02:37.2]} 11... Nbd7 {[%clk 0:02:51.7]} 12. Ne5 {[%clk 0:02:30.7]} 12... Nxe5
{[%clk 0:02:28.7]} 13. Bxe5 {[%clk 0:02:31.6]} 13... Nd7 {[%clk 0:02:28.1]} 14.
Bc3 {[%clk 0:02:26.3]} 14... d4 {[%clk 0:02:12.6]} 15. exd4 {[%clk 0:02:20.8]}
15... Qg5 {[%clk 0:02:12.5]} 16. f3 {[%clk 0:02:14.6]} 16... Nf6 {[%clk
0:02:11.2]} 17. Re1 {[%clk 0:02:08.2]} 17... Rad8 {[%clk 0:02:02.9]} 18. dxc5
{[%clk 0:01:49.4]} 18... Qxc5+ {[%clk 0:02:03.8]} 19. Kh1 {[%clk 0:01:46.2]}
19... Rfe8 {[%clk 0:01:52.5]} 20. Qe2 {[%clk 0:01:40]} 20... Nh5 {[%clk
0:01:42.1]} 21. Bc2 {[%clk 0:01:19.7]} 21... e5 {[%clk 0:01:31.6]} 22. b4 {[%clk
0:01:13.5]} 22... Qb6 {[%clk 0:01:28]} 23. c5 {[%clk 0:01:11.3]} 23... Qh6
{[%clk 0:01:27.7]} 24. Qe3 {[%clk 0:01:07.9]} 24... Qxe3 {[%clk 0:00:58]} 25.
Rxe3 {[%clk 0:01:08.8]} 25... f6 {[%clk 0:00:58.2]} 26. Bb3+ {[%clk 0:01:05.9]}
26... Kh8 {[%clk 0:00:57.5]} 27. Bf7 {[%clk 0:01:06.4]} 27... Nf4 {[%clk
0:00:54.2]} 28. Bxe8 {[%clk 0:01:05.9]} 28... Rxe8 {[%clk 0:00:55.1]} 29. Rd1
{[%clk 0:01:05.2]} 29... g5 {[%clk 0:00:53.3]} 30. g3 {[%clk 0:01:04.6]} 30...
Ng6 {[%clk 0:00:51.8]} 31. Kg1 {[%clk 0:01:03.1]} 31... h5 {[%clk 0:00:51.7]}
32. Red3 {[%clk 0:01:02.7]} 32... Bc6 {[%clk 0:00:33.7]} 33. Rd8 {[%clk
0:01:02.1]} 33... Rxd8 {[%clk 0:00:34]} 34. Rxd8+ {[%clk 0:01:03]} 34... Kg7
{[%clk 0:00:34.9]} 35. Rc8 {[%clk 0:00:54.6]} 35... Bxf3 {[%clk 0:00:34.6]} 36.
Rc7+ {[%clk 0:00:55]} 36... Kh6 {[%clk 0:00:34.3]} 37. Rxa7 {[%clk 0:00:55.6]}
37... h4 {[%clk 0:00:32.6]} 38. Rf7 {[%clk 0:00:55.6]} 38... hxg3 {[%clk
0:00:30.8]} 39. hxg3 {[%clk 0:00:56.5]} 39... Kh5 {[%clk 0:00:26.5]} 40. Rxf6
{[%clk 0:00:55.7]} 40... Ne7 {[%clk 0:00:27.2]} 41. Bxe5 {[%clk 0:00:54.4]}
41... Kg4 {[%clk 0:00:26.9]} 42. Kf2 {[%clk 0:00:53.9]} 42... Be4 {[%clk
0:00:26.1]} 43. Re6 {[%clk 0:00:52]} 43... Nd5 {[%clk 0:00:26.1]} 44. Bd4 {[%clk
0:00:50.7]} 44... Bf5 {[%clk 0:00:26.4]} 45. Re5 {[%clk 0:00:50.8]} 45... Nc7
{[%clk 0:00:26.4]} 46. a4 {[%clk 0:00:47.6]} 46... Bc2 {[%clk 0:00:26.4]} 47. b5
{[%clk 0:00:46.7]} 47... Bxa4 {[%clk 0:00:25.7]} 48. b6 {[%clk 0:00:47.3]} 48...
Na6 {[%clk 0:00:26.2]} 49. Be3 {[%clk 0:00:47]} 49... Be8 {[%clk 0:00:21.5]} 50.
Rxg5+ {[%clk 0:00:46.6]} 50... Kh3 {[%clk 0:00:21.9]} 51. Re5 {[%clk 0:00:45.6]}
51... Bd7 {[%clk 0:00:21.8]} 52. Re4 {[%clk 0:00:44.5]} 52... Bg4 {[%clk
0:00:20.2]} 53. Rxg4 {[%clk 0:00:43.1]} 53... Kxg4 {[%clk 0:00:21.1]} 54. c6
{[%clk 0:00:43.9]} 1-0

[Event "*** Titled Tuesday Blitz"]
[Site "Chess.com"]
[Date "2020.10.27"]
[Round "7"]
[White "Roza_Idrisova"]
[Black "CM_rui"]
[Result "0-1"]
[WhiteElo "2204"]
[BlackElo "2361"]
[TimeControl "180+1"]
[EndTime "11:19:12 PDT"]
[Termination "CM_rui won by resignation"]

1. d4 {[%clk 0:03:00.9]} 1... Nf6 {[%clk 0:03:00.4]} 2. Nf3 {[%clk 0:03:00.9]}
2... e6 {[%clk 0:03:01.3]} 3. Bg5 {[%clk 0:03:00.1]} 3... Be7 {[%clk 0:03:00.8]}
4. Nbd2 {[%clk 0:03:00.2]} 4... O-O {[%clk 0:03:01]} 5. e4 {[%clk 0:03:00.2]}
5... d6 {[%clk 0:02:59.8]} 6. Bd3 {[%clk 0:03:00.2]} 6... Nbd7 {[%clk
0:02:59.8]} 7. O-O {[%clk 0:02:59.6]} 7... e5 {[%clk 0:03:00.3]} 8. c3 {[%clk
0:02:57.1]} 8... a5 {[%clk 0:02:59.5]} 9. h3 {[%clk 0:02:56.9]} 9... b6 {[%clk
0:02:59.4]} 10. Qe2 {[%clk 0:02:56.4]} 10... Bb7 {[%clk 0:02:58.5]} 11. Rfd1
{[%clk 0:02:38.5]} 11... Re8 {[%clk 0:02:48.2]} 12. dxe5 {[%clk 0:02:37]} 12...
dxe5 {[%clk 0:02:48.1]} 13. Bb5 {[%clk 0:02:32.9]} 13... c6 {[%clk 0:02:43.7]}
14. Bc4 {[%clk 0:02:30.3]} 14... b5 {[%clk 0:02:42.2]} 15. Bb3 {[%clk
0:02:30.1]} 15... a4 {[%clk 0:02:41.6]} 16. Bc2 {[%clk 0:02:29.8]} 16... Qc7
{[%clk 0:02:39.5]} 17. b4 {[%clk 0:02:21.2]} 17... Nb6 {[%clk 0:02:33.8]} 18. a3
{[%clk 0:02:18.8]} 18... Rad8 {[%clk 0:02:32.2]} 19. c4 {[%clk 0:02:13]} 19...
bxc4 {[%clk 0:02:19.7]} 20. Nxc4 {[%clk 0:02:08.6]} 20... Ba6 {[%clk 0:02:19.7]}
21. Nfd2 {[%clk 0:01:58.4]} 21... Rxd2 {[%clk 0:02:16.7]} 22. Rxd2 {[%clk
0:01:55.3]} 22... Nxc4 {[%clk 0:02:14.4]} 23. Rdd1 {[%clk 0:01:52.1]} 23... Nxa3
{[%clk 0:01:59.6]} 24. Qxa6 {[%clk 0:01:48.8]} 24... Nxc2 {[%clk 0:01:59.3]} 25.
Rxa4 {[%clk 0:01:48.2]} 25... Nxb4 {[%clk 0:01:59.3]} 26. Qc4 {[%clk 0:01:39.2]}
26... Rb8 {[%clk 0:01:40.7]} 27. Bxf6 {[%clk 0:01:36.5]} 27... gxf6 {[%clk
0:01:41.6]} 28. Rc1 {[%clk 0:01:31.9]} 28... c5 {[%clk 0:01:39.9]} 29. Rxb4
{[%clk 0:01:28.8]} 29... Rd8 {[%clk 0:01:30.1]} 30. Rbb1 {[%clk 0:01:25.4]}
30... Rd4 {[%clk 0:01:29.9]} 31. Qe2 {[%clk 0:01:25.1]} 31... Qc6 {[%clk
0:01:25.5]} 32. f3 {[%clk 0:01:23.9]} 32... c4 {[%clk 0:01:21]} 33. Qa2 {[%clk
0:01:14]} 33... c3 {[%clk 0:01:17.1]} 34. Rc2 {[%clk 0:01:12.6]} 34... Rd3
{[%clk 0:01:06.5]} 35. Qb3 {[%clk 0:01:04.2]} 35... Bc5+ {[%clk 0:01:06.1]} 36.
Kh2 {[%clk 0:01:02.8]} 36... Bd4 {[%clk 0:01:07]} 37. Qd5 {[%clk 0:00:31.9]}
37... Bg1+ {[%clk 0:00:39.7]} 38. Rxg1 {[%clk 0:00:30.3]} 38... Rxd5 {[%clk
0:00:39.7]} 39. exd5 {[%clk 0:00:30.2]} 39... Qxd5 {[%clk 0:00:37.4]} 40. Rxc3
{[%clk 0:00:27.4]} 40... Qd4 {[%clk 0:00:36.3]} 41. Rcc1 {[%clk 0:00:22.5]}
41... Qf4+ {[%clk 0:00:35.5]} 42. Kh1 {[%clk 0:00:21.7]} 42... f5 {[%clk
0:00:35.7]} 43. Rge1 {[%clk 0:00:19.9]} 43... e4 {[%clk 0:00:35.1]} 44. fxe4
{[%clk 0:00:20]} 44... fxe4 {[%clk 0:00:35.8]} 45. Re2 {[%clk 0:00:19.7]} 45...
Qxc1+ {[%clk 0:00:35.5]} 46. Kh2 {[%clk 0:00:18.7]} 46... e3 {[%clk 0:00:35.9]}
47. Kg3 {[%clk 0:00:18.3]} 47... Kg7 {[%clk 0:00:30.8]} 48. Kf3 {[%clk
0:00:18.1]} 48... f5 {[%clk 0:00:25.6]} 49. Rxe3 {[%clk 0:00:17.2]} 49... Qf1+
{[%clk 0:00:23.8]} 50. Kg3 {[%clk 0:00:17.1]} 50... f4+ {[%clk 0:00:24.6]} 0-1

[Event "*** Titled Tuesday Blitz"]
[Site "Chess.com"]
[Date "2020.10.27"]
[Round "7"]
[White "Artem_0degov"]
[Black "HouseOfDurin"]
[Result "0-1"]
[WhiteElo "2369"]
[BlackElo "2191"]
[TimeControl "180+1"]
[EndTime "11:19:14 PDT"]
[Termination "HouseOfDurin won by resignation"]

1. d4 {[%clk 0:03:00.9]} 1... Nf6 {[%clk 0:02:59.1]} 2. Bf4 {[%clk 0:03:01.2]}
2... c5 {[%clk 0:02:59.5]} 3. e3 {[%clk 0:03:01.5]} 3... cxd4 {[%clk 0:02:59]}
4. exd4 {[%clk 0:03:01.3]} 4... g6 {[%clk 0:02:59.7]} 5. Nf3 {[%clk 0:03:01.1]}
5... Bg7 {[%clk 0:03:00.2]} 6. Be2 {[%clk 0:03:00.4]} 6... O-O {[%clk
0:03:00.7]} 7. h3 {[%clk 0:03:00.9]} 7... d5 {[%clk 0:03:01.3]} 8. O-O {[%clk
0:03:01.4]} 8... Ne4 {[%clk 0:03:01.8]} 9. Nc3 {[%clk 0:03:00.7]} 9... Nc6
{[%clk 0:03:00.5]} 10. Ne5 {[%clk 0:02:58.6]} 10... Nxc3 {[%clk 0:02:55]} 11.
bxc3 {[%clk 0:02:59.5]} 11... Nxe5 {[%clk 0:02:52.8]} 12. dxe5 {[%clk
0:02:59.2]} 12... e6 {[%clk 0:02:49.1]} 13. Re1 {[%clk 0:02:57.4]} 13... Qc7
{[%clk 0:02:42.3]} 14. Qd4 {[%clk 0:02:56.4]} 14... Bd7 {[%clk 0:02:26]} 15.
Rab1 {[%clk 0:02:50.9]} 15... Rfc8 {[%clk 0:02:19.8]} 16. Rb3 {[%clk 0:02:44.4]}
16... b5 {[%clk 0:02:08.5]} 17. Bf3 {[%clk 0:02:32.8]} 17... Qc6 {[%clk
0:01:44.1]} 18. h4 {[%clk 0:02:29.4]} 18... h5 {[%clk 0:01:42.7]} 19. Qd2 {[%clk
0:02:25.1]} 19... a5 {[%clk 0:01:38.5]} 20. Bh6 {[%clk 0:02:22]} 20... a4 {[%clk
0:01:37.8]} 21. Ra3 {[%clk 0:02:14.1]} 21... Qc5 {[%clk 0:01:27.3]} 22. Bxg7
{[%clk 0:02:09.3]} 22... Kxg7 {[%clk 0:01:28.2]} 23. Qc1 {[%clk 0:02:08.5]}
23... Qe7 {[%clk 0:01:05.4]} 24. g3 {[%clk 0:02:05.3]} 24... Rc4 {[%clk
0:01:04.3]} 25. Qb2 {[%clk 0:01:58.5]} 25... Rac8 {[%clk 0:01:04.4]} 26. Re3
{[%clk 0:01:51.4]} 26... Be8 {[%clk 0:00:51.2]} 27. Be2 {[%clk 0:01:48.1]} 27...
Re4 {[%clk 0:00:43.9]} 28. Rxe4 {[%clk 0:01:45.6]} 28... dxe4 {[%clk 0:00:44.8]}
29. c4 {[%clk 0:01:41.7]} 29... bxc4 {[%clk 0:00:34.2]} 30. Re3 {[%clk
0:01:40.7]} 30... Bc6 {[%clk 0:00:17.2]} 31. Bxc4 {[%clk 0:01:27.9]} 31... Qc5
{[%clk 0:00:17.3]} 32. Bf1 {[%clk 0:00:57.8]} 32... Rc7 {[%clk 0:00:15.3]} 33.
Qb8 {[%clk 0:00:57.2]} 33... Rb7 {[%clk 0:00:14.9]} 34. Qd8 {[%clk 0:00:50.7]}
34... Rb1 {[%clk 0:00:14.6]} 35. Qf6+ {[%clk 0:00:47.8]} 35... Kg8 {[%clk
0:00:14.5]} 36. Kg2 {[%clk 0:00:43.2]} 36... Bb5 {[%clk 0:00:11.2]} 37. Be2
{[%clk 0:00:35.2]} 37... Bxe2 {[%clk 0:00:05]} 38. Rxe2 {[%clk 0:00:36.1]} 38...
Qd5 {[%clk 0:00:03.2]} 39. Qf4 {[%clk 0:00:25.4]} 39... Qd1 {[%clk 0:00:03.2]}
0-1

[Event "*** Titled Tuesday Blitz"]
[Site "Chess.com"]
[Date "2020.10.27"]
[Round "7"]
[White "AndreyNeves"]
[Black "Omk124"]
[Result "0-1"]
[WhiteElo "2260"]
[BlackElo "2415"]
[TimeControl "180+1"]
[EndTime "11:19:14 PDT"]
[Termination "Omk124 won by checkmate"]

1. d4 {[%clk 0:01:40.5]} 1... Nf6 {[%clk 0:02:58.5]} 2. c4 {[%clk 0:01:38.6]}
2... g6 {[%clk 0:02:58.3]} 3. g3 {[%clk 0:01:37.7]} 3... Bg7 {[%clk 0:02:58.3]}
4. Bg2 {[%clk 0:01:37.7]} 4... O-O {[%clk 0:02:58.2]} 5. Nf3 {[%clk 0:01:37.4]}
5... c6 {[%clk 0:02:53.8]} 6. O-O {[%clk 0:01:36.2]} 6... d5 {[%clk 0:02:54.4]}
7. cxd5 {[%clk 0:01:36.5]} 7... cxd5 {[%clk 0:02:54.5]} 8. Nc3 {[%clk
0:01:37.2]} 8... Nc6 {[%clk 0:02:54.5]} 9. Ne5 {[%clk 0:01:37.2]} 9... e6 {[%clk
0:02:55]} 10. f4 {[%clk 0:01:35.8]} 10... Nd7 {[%clk 0:02:52.6]} 11. Be3 {[%clk
0:01:33.2]} 11... Nb6 {[%clk 0:02:51.4]} 12. b3 {[%clk 0:01:31.4]} 12... Ne7
{[%clk 0:02:45.1]} 13. Kh1 {[%clk 0:01:29]} 13... f6 {[%clk 0:02:44.7]} 14. Nf3
{[%clk 0:01:25.1]} 14... Bd7 {[%clk 0:02:45]} 15. Bf2 {[%clk 0:01:19.4]} 15...
Rc8 {[%clk 0:02:44.5]} 16. Rc1 {[%clk 0:01:18.1]} 16... Nf5 {[%clk 0:02:44.1]}
17. e4 {[%clk 0:01:12.8]} 17... dxe4 {[%clk 0:02:41]} 18. Nxe4 {[%clk
0:01:12.7]} 18... Rxc1 {[%clk 0:02:41.6]} 19. Qxc1 {[%clk 0:01:12.2]} 19... Bc6
{[%clk 0:02:42.1]} 20. Re1 {[%clk 0:01:05.1]} 20... Re8 {[%clk 0:02:34.7]} 21.
Nc5 {[%clk 0:01:02.2]} 21... Qd6 {[%clk 0:02:20.6]} 22. g4 {[%clk 0:00:49]}
22... Bxf3 {[%clk 0:02:10.8]} 23. Bxf3 {[%clk 0:00:36.1]} 23... Nxd4 {[%clk
0:02:10.8]} 24. Bxd4 {[%clk 0:00:26.7]} 24... Qxd4 {[%clk 0:02:11.7]} 25. Nxe6
{[%clk 0:00:25.6]} 25... Qd7 {[%clk 0:02:00.2]} 26. Nxg7 {[%clk 0:00:24.6]}
26... Rxe1+ {[%clk 0:01:59.5]} 27. Qxe1 {[%clk 0:00:23.3]} 27... Kxg7 {[%clk
0:02:00.4]} 28. Qe4 {[%clk 0:00:19.7]} 28... Kh6 {[%clk 0:01:42]} 29. Qxb7
{[%clk 0:00:18.5]} 29... Qd2 {[%clk 0:01:42.2]} 30. Qe4 {[%clk 0:00:16.1]} 30...
Qxa2 {[%clk 0:01:39.1]} 31. h4 {[%clk 0:00:13.6]} 31... Qxb3 {[%clk 0:01:22]}
32. g5+ {[%clk 0:00:12.1]} 32... fxg5 {[%clk 0:01:21.7]} 33. hxg5+ {[%clk
0:00:07.5]} 33... Kg7 {[%clk 0:01:22.2]} 34. Qe7+ {[%clk 0:00:06.8]} 34... Qf7
{[%clk 0:01:21.5]} 35. Qe5+ {[%clk 0:00:06.4]} 35... Kg8 {[%clk 0:01:21.7]} 36.
Be4 {[%clk 0:00:05.2]} 36... Kf8 {[%clk 0:01:14.4]} 37. f5 {[%clk 0:00:05.2]}
37... gxf5 {[%clk 0:01:14.6]} 38. Bxf5 {[%clk 0:00:05.1]} 38... Qd5+ {[%clk
0:01:13.8]} 39. Qxd5 {[%clk 0:00:04.5]} 39... Nxd5 {[%clk 0:01:14.7]} 40. Kh2
{[%clk 0:00:04.2]} 40... Kg7 {[%clk 0:01:14.6]} 41. Kg3 {[%clk 0:00:03.8]} 41...
a5 {[%clk 0:01:10]} 42. Kf2 {[%clk 0:00:03]} 42... a4 {[%clk 0:01:09]} 43. Be6
{[%clk 0:00:02.6]} 43... Nc3 {[%clk 0:01:06.8]} 44. Ke1 {[%clk 0:00:01.9]} 44...
a3 {[%clk 0:01:07.5]} 45. Kd2 {[%clk 0:00:02.6]} 45... a2 {[%clk 0:01:08.1]} 46.
Bxa2 {[%clk 0:00:02.1]} 46... Nxa2 {[%clk 0:01:09]} 47. Ke3 {[%clk 0:00:02.5]}
47... Kg6 {[%clk 0:01:09.4]} 48. Kf4 {[%clk 0:00:03.4]} 48... Nb4 {[%clk
0:01:10]} 49. Kg4 {[%clk 0:00:04]} 49... Nc6 {[%clk 0:01:10.5]} 50. Kh4 {[%clk
0:00:04.9]} 50... Nd8 {[%clk 0:01:10.9]} 51. Kg4 {[%clk 0:00:05.8]} 51... Nf7
{[%clk 0:01:11.8]} 52. Kh4 {[%clk 0:00:06.6]} 52... Nxg5 {[%clk 0:01:12.7]} 53.
Kg3 {[%clk 0:00:05.9]} 53... h5 {[%clk 0:01:13.6]} 54. Kh4 {[%clk 0:00:05.7]}
54... Nf7 {[%clk 0:01:14.5]} 55. Kg3 {[%clk 0:00:05.7]} 55... Nh6 {[%clk
0:01:15.4]} 56. Kh4 {[%clk 0:00:05.7]} 56... Nf5+ {[%clk 0:01:16.1]} 57. Kh3
{[%clk 0:00:05.7]} 57... Kg5 {[%clk 0:01:17]} 58. Kh2 {[%clk 0:00:05.4]} 58...
h4 {[%clk 0:01:17.9]} 59. Kh1 {[%clk 0:00:05.5]} 59... Kf4 {[%clk 0:01:18.8]}
60. Kh2 {[%clk 0:00:05.6]} 60... Kg4 {[%clk 0:01:19.7]} 61. Kh1 {[%clk
0:00:05.7]} 61... h3 {[%clk 0:01:20.6]} 62. Kh2 {[%clk 0:00:05.9]} 62... Kh4
{[%clk 0:01:20.9]} 63. Kh1 {[%clk 0:00:06]} 63... Kg3 {[%clk 0:01:21.8]} 64. Kg1
{[%clk 0:00:06]} 64... Nd6 {[%clk 0:01:20.9]} 65. Kh1 {[%clk 0:00:05.7]} 65...
Ne4 {[%clk 0:01:21.4]} 66. Kg1 {[%clk 0:00:05.5]} 66... h2+ {[%clk 0:01:21.9]}
67. Kh1 {[%clk 0:00:05.4]} 67... Nf2# {[%clk 0:01:22.1]} 0-1

[Event "*** Titled Tuesday Blitz"]
[Site "Chess.com"]
[Date "2020.10.27"]
[Round "7"]
[White "exoticprincess"]
[Black "RaunakSadhwani2005"]
[Result "1/2-1/2"]
[WhiteElo "2875"]
[BlackElo "2972"]
[TimeControl "180+1"]
[EndTime "11:19:17 PDT"]
[Termination "Game drawn by repetition"]

1. d4 {[%clk 0:03:00.9]} 1... d5 {[%clk 0:02:59.1]} 2. c4 {[%clk 0:03:00.4]}
2... c6 {[%clk 0:02:59.4]} 3. Nf3 {[%clk 0:02:58.7]} 3... Nf6 {[%clk 0:02:59.5]}
4. cxd5 {[%clk 0:02:58.7]} 4... cxd5 {[%clk 0:02:59.6]} 5. Nc3 {[%clk
0:02:59.3]} 5... Nc6 {[%clk 0:03:00]} 6. Bf4 {[%clk 0:02:59.4]} 6... Bf5 {[%clk
0:03:00.3]} 7. e3 {[%clk 0:02:59.3]} 7... e6 {[%clk 0:03:00.7]} 8. Bb5 {[%clk
0:02:59.1]} 8... Bb4 {[%clk 0:02:57.1]} 9. Ne5 {[%clk 0:02:51.8]} 9... O-O
{[%clk 0:02:32.2]} 10. Bxc6 {[%clk 0:02:46.7]} 10... bxc6 {[%clk 0:02:29.8]} 11.
O-O {[%clk 0:02:39.3]} 11... Bxc3 {[%clk 0:02:27.2]} 12. bxc3 {[%clk 0:02:38.9]}
12... Rc8 {[%clk 0:02:23.1]} 13. Qa4 {[%clk 0:02:22.8]} 13... Qb6 {[%clk
0:02:22.6]} 14. f3 {[%clk 0:02:02.4]} 14... c5 {[%clk 0:02:14.8]} 15. g4 {[%clk
0:01:57.5]} 15... Bg6 {[%clk 0:02:10.3]} 16. g5 {[%clk 0:01:57.9]} 16... Nh5
{[%clk 0:02:08]} 17. Nd7 {[%clk 0:01:58]} 17... Qb2 {[%clk 0:02:00.7]} 18. Nxf8
{[%clk 0:01:58.2]} 18... Nxf4 {[%clk 0:01:50.5]} 19. exf4 {[%clk 0:01:56.9]}
19... Rxf8 {[%clk 0:01:43.6]} 20. dxc5 {[%clk 0:01:51.3]} 20... Qxc3 {[%clk
0:01:42.4]} 21. Rac1 {[%clk 0:01:35.4]} 21... Qe3+ {[%clk 0:01:41.6]} 22. Kg2
{[%clk 0:01:35.9]} 22... d4 {[%clk 0:01:34]} 23. c6 {[%clk 0:01:30]} 23... Bd3
{[%clk 0:01:21.4]} 24. Rfe1 {[%clk 0:00:30.1]} 24... Be2 {[%clk 0:01:19.1]} 25.
Rxe2 {[%clk 0:00:27.9]} 25... Qxe2+ {[%clk 0:00:31.7]} 26. Kg3 {[%clk
0:00:27.9]} 26... d3 {[%clk 0:00:14.3]} 27. Qd1 {[%clk 0:00:24.8]} 27... d2
{[%clk 0:00:10.1]} 28. Rb1 {[%clk 0:00:24.4]} 28... Qe3 {[%clk 0:00:09.6]} 29.
c7 {[%clk 0:00:22.5]} 29... e5 {[%clk 0:00:06.3]} 30. Rb8 {[%clk 0:00:19.4]}
30... Qxf4+ {[%clk 0:00:02.8]} 31. Kg2 {[%clk 0:00:19.7]} 31... Qxg5+ {[%clk
0:00:03.5]} 32. Kf1 {[%clk 0:00:19.9]} 32... Qf5 {[%clk 0:00:03]} 33. Rxf8+
{[%clk 0:00:16.9]} 33... Kxf8 {[%clk 0:00:03.9]} 34. Qxd2 {[%clk 0:00:17.5]}
34... Qxf3+ {[%clk 0:00:04.2]} 35. Ke1 {[%clk 0:00:15.8]} 35... Qh1+ {[%clk
0:00:04.3]} 36. Ke2 {[%clk 0:00:15.2]} 36... Qe4+ {[%clk 0:00:04.2]} 37. Kf2
{[%clk 0:00:14.4]} 37... Qf5+ {[%clk 0:00:04.5]} 38. Ke1 {[%clk 0:00:12.9]}
38... Qe4+ {[%clk 0:00:04.8]} 39. Kf2 {[%clk 0:00:13.1]} 39... Qf5+ {[%clk
0:00:05.1]} 40. Ke1 {[%clk 0:00:13.4]} 40... Qe4+ {[%clk 0:00:05.5]} 41. Kf2
{[%clk 0:00:12.5]} 1/2-1/2

[Event "*** Titled Tuesday Blitz"]
[Site "Chess.com"]
[Date "2020.10.27"]
[Round "7"]
[White "Oleksandr_Bortnyk"]
[Black "Jumbo"]
[Result "0-1"]
[WhiteElo "2910"]
[BlackElo "2877"]
[TimeControl "180+1"]
[EndTime "11:19:19 PDT"]
[Termination "Jumbo won by resignation"]

1. d4 {[%clk 0:03:00.9]} 1... d5 {[%clk 0:02:59.2]} 2. Nc3 {[%clk 0:02:56.3]}
2... Nf6 {[%clk 0:02:56.3]} 3. Bg5 {[%clk 0:02:55.8]} 3... Nbd7 {[%clk
0:02:31.5]} 4. Nf3 {[%clk 0:02:53.5]} 4... c5 {[%clk 0:02:30]} 5. dxc5 {[%clk
0:02:37.8]} 5... Qa5 {[%clk 0:02:29.5]} 6. a3 {[%clk 0:02:19.9]} 6... Qxc5
{[%clk 0:02:28.6]} 7. e3 {[%clk 0:02:10.6]} 7... a6 {[%clk 0:02:24.3]} 8. Bd3
{[%clk 0:01:27]} 8... e6 {[%clk 0:02:24.1]} 9. O-O {[%clk 0:01:23.5]} 9... Be7
{[%clk 0:02:21.3]} 10. e4 {[%clk 0:01:20.8]} 10... dxe4 {[%clk 0:02:08.5]} 11.
Nxe4 {[%clk 0:01:21.7]} 11... Qc7 {[%clk 0:02:08.3]} 12. Qe2 {[%clk 0:01:14.6]}
12... b6 {[%clk 0:02:01.5]} 13. Rfe1 {[%clk 0:01:05.1]} 13... Bb7 {[%clk
0:02:00.8]} 14. Nxf6+ {[%clk 0:01:03.4]} 14... Nxf6 {[%clk 0:01:52.1]} 15. Ne5
{[%clk 0:01:02.9]} 15... O-O {[%clk 0:01:52.2]} 16. Bh4 {[%clk 0:00:55.7]} 16...
b5 {[%clk 0:01:21.9]} 17. Rac1 {[%clk 0:00:50.3]} 17... Rad8 {[%clk 0:01:13.1]}
18. c4 {[%clk 0:00:50.5]} 18... bxc4 {[%clk 0:01:13.4]} 19. Rxc4 {[%clk
0:00:50.1]} 19... Qb6 {[%clk 0:01:13.5]} 20. Rec1 {[%clk 0:00:39.4]} 20... Rd4
{[%clk 0:00:56.9]} 21. Rc7 {[%clk 0:00:21.4]} 21... Rxh4 {[%clk 0:00:31.2]} 22.
Rxe7 {[%clk 0:00:21.5]} 22... Nd5 {[%clk 0:00:31.8]} 23. Nd7 {[%clk 0:00:10.6]}
23... Qd6 {[%clk 0:00:31.1]} 24. g3 {[%clk 0:00:08.7]} 24... Qxe7 {[%clk
0:00:30.4]} 25. Nxf8 {[%clk 0:00:08.5]} 25... Rd4 {[%clk 0:00:30.7]} 26. Nxh7
{[%clk 0:00:06.8]} 26... g6 {[%clk 0:00:26.1]} 27. Bb1 {[%clk 0:00:02.9]} 27...
Kxh7 {[%clk 0:00:20.4]} 28. h4 {[%clk 0:00:02.4]} 28... Kg7 {[%clk 0:00:20.6]}
29. Qe5+ {[%clk 0:00:02.2]} 29... Qf6 {[%clk 0:00:21]} 30. Qxf6+ {[%clk
0:00:02.3]} 30... Kxf6 {[%clk 0:00:21.9]} 31. b4 {[%clk 0:00:02.4]} 31... Rd2
{[%clk 0:00:22]} 32. Be4 {[%clk 0:00:02.2]} 32... Rd4 {[%clk 0:00:21.6]} 33. Bf3
{[%clk 0:00:02.2]} 33... Rd3 {[%clk 0:00:22.1]} 34. Bxd5 {[%clk 0:00:01.3]}
34... Bxd5 {[%clk 0:00:21.9]} 35. a4 {[%clk 0:00:02.2]} 35... Rb3 {[%clk
0:00:21.9]} 36. b5 {[%clk 0:00:02.8]} 36... axb5 {[%clk 0:00:22]} 37. axb5
{[%clk 0:00:03.7]} 37... Rxb5 {[%clk 0:00:22.5]} 38. Re1 {[%clk 0:00:04.6]}
38... Rb4 {[%clk 0:00:22.1]} 39. Kh2 {[%clk 0:00:04.8]} 39... Re4 {[%clk
0:00:22.2]} 40. Rc1 {[%clk 0:00:04.5]} 40... Re2 {[%clk 0:00:22.5]} 41. Kg1
{[%clk 0:00:05]} 41... Rb2 {[%clk 0:00:22.8]} 42. Re1 {[%clk 0:00:04.7]} 42...
Kf5 {[%clk 0:00:22.9]} 43. Rd1 {[%clk 0:00:02.9]} 43... Be4 {[%clk 0:00:22.5]}
44. Kh2 {[%clk 0:00:01.3]} 44... Rb1 {[%clk 0:00:22.4]} 45. Kh3 {[%clk 0:00:02]}
45... Rxd1 {[%clk 0:00:21.6]} 0-1